[Event "Live Chess"]
[Site "Chess.com"]
[Date "2024.06.01"]
[Round "-"]
[White "raimundklein"]
[Black "Bazzza132"]
[Result "0-1"]
[WhiteElo "1642"]
[BlackElo "1687"]
[TimeControl "300"]
[EndTime "9:09:26 PDT"]
[Termination "Bazzza132 won by resignation"]

1. e4 {[%clk 0:04:57.2]} 1... e5 {[%clk 0:04:59.3]} 2. Nf3 {[%clk 0:04:56.4]}
2... d6 {[%clk 0:04:58.4]} 3. d4 {[%clk 0:04:54.6]} 3... exd4 {[%clk 0:04:57.4]}
4. Nxd4 {[%clk 0:04:52.7]} 4... Nf6 {[%clk 0:04:56.7]} 5. Nc3 {[%clk 0:04:42.1]}
5... Nc6 {[%clk 0:04:52.9]} 6. Bb5 {[%clk 0:04:38.2]} 6... Bd7 {[%clk
0:04:50.4]} 7. Nf5 {[%clk 0:04:32.8]} 7... a6 {[%clk 0:04:30.9]} 8. Bxc6 {[%clk
0:04:24.1]} 8... Bxc6 {[%clk 0:04:28.7]} 9. f3 {[%clk 0:04:22.8]} 9... g6 {[%clk
0:04:21.7]} 10. Nd4 {[%clk 0:04:19.8]} 10... Bg7 {[%clk 0:03:58.7]} 11. Nxc6
{[%clk 0:04:17.7]} 11... bxc6 {[%clk 0:03:58.2]} 12. O-O {[%clk 0:04:17.1]}
12... O-O {[%clk 0:03:55.6]} 13. Bg5 {[%clk 0:04:15.5]} 13... h6 {[%clk
0:03:53.8]} 14. Bh4 {[%clk 0:04:12.6]} 14... Rb8 {[%clk 0:03:46.4]} 15. Rb1
{[%clk 0:04:06.9]} 15... Qd7 {[%clk 0:03:38]} 16. Qe2 {[%clk 0:04:04.5]} 16...
Nh5 {[%clk 0:03:34.4]} 17. Qxa6 {[%clk 0:03:58]} 17... Bd4+ {[%clk 0:03:20.6]}
18. Bf2 {[%clk 0:03:53.6]} 18... Be5 {[%clk 0:03:15.3]} 19. Be3 {[%clk 0:03:42]}
19... Kh7 {[%clk 0:03:03.1]} 20. Rfd1 {[%clk 0:03:31.4]} 20... Ra8 {[%clk
0:02:58.2]} 21. Qc4 {[%clk 0:03:29]} 21... f5 {[%clk 0:02:53]} 22. exf5 {[%clk
0:03:19.5]} 22... Rf6 {[%clk 0:02:38]} 23. fxg6+ {[%clk 0:03:09]} 23... Rxg6
{[%clk 0:02:36.2]} 24. Qh4 {[%clk 0:03:03.7]} 24... Rag8 {[%clk 0:02:24.6]} 25.
Rd2 {[%clk 0:02:57.8]} 25... Qf5 {[%clk 0:02:13.4]} 26. Rf2 {[%clk 0:02:47.1]}
26... Nf4 {[%clk 0:01:40.7]} 27. Bxf4 {[%clk 0:02:41.2]} 27... Bd4 {[%clk
0:01:33.4]} 28. g3 {[%clk 0:02:29.3]} 28... Bxf2+ {[%clk 0:01:26]} 29. Kxf2
{[%clk 0:02:27.2]} 29... Qxc2+ {[%clk 0:01:23.6]} 30. Kg1 {[%clk 0:02:19.8]}
30... Qf5 {[%clk 0:01:16.9]} 31. Ne4 {[%clk 0:02:11.6]} 31... d5 {[%clk
0:01:13.8]} 32. Nc3 {[%clk 0:02:00.4]} 32... Qd3 {[%clk 0:01:11.5]} 33. Rf1
{[%clk 0:01:51.4]} 33... Qd4+ {[%clk 0:01:07.7]} 34. Kg2 {[%clk 0:01:45.8]}
34... Qd3 {[%clk 0:01:05]} 35. Rf2 {[%clk 0:01:42]} 35... Re8 {[%clk 0:01:02.2]}
36. Qh3 {[%clk 0:01:26.2]} 36... Re7 {[%clk 0:00:59.7]} 37. Qc8 {[%clk
0:01:23.9]} 37... Rge6 {[%clk 0:00:55.6]} 38. Qf8 {[%clk 0:01:18.5]} 38... Qg6
{[%clk 0:00:53]} 39. Qd8 {[%clk 0:00:59]} 39... Rg7 {[%clk 0:00:51.2]} 40. Bxc7
{[%clk 0:00:56.9]} 40... Ree7 {[%clk 0:00:49.5]} 41. Bf4 {[%clk 0:00:49.8]}
41... Rd7 {[%clk 0:00:48.8]} 42. Qh4 {[%clk 0:00:43]} 42... Rdf7 {[%clk
0:00:46.8]} 43. Be5 {[%clk 0:00:39]} 43... Rg8 {[%clk 0:00:44.8]} 44. Qa4 {[%clk
0:00:36.5]} 44... Re8 {[%clk 0:00:42.7]} 45. f4 {[%clk 0:00:34.1]} 45... Qe6
{[%clk 0:00:38.8]} 46. Ne2 {[%clk 0:00:27.2]} 46... h5 {[%clk 0:00:38.2]} 47.
Nd4 {[%clk 0:00:25.8]} 47... Qg6 {[%clk 0:00:36.6]} 48. Qxc6 {[%clk 0:00:24.8]}
48... Qe4+ {[%clk 0:00:35.1]} 49. Nf3 {[%clk 0:00:21.2]} 49... d4 {[%clk
0:00:33.6]} 50. Bxd4 {[%clk 0:00:18.7]} 50... Qxc6 {[%clk 0:00:32.6]} 51. Be5
{[%clk 0:00:14.3]} 51... Rg8 {[%clk 0:00:31.9]} 52. h4 {[%clk 0:00:11.8]} 52...
Rf5 {[%clk 0:00:31.4]} 0-1

[Event "Live Chess"]
[Site "Chess.com"]
[Date "2024.06.01"]
[Round "-"]
[White "PedroCI"]
[Black "OliWally08"]
[Result "1-0"]
[WhiteElo "1272"]
[BlackElo "1250"]
[TimeControl "300"]
[EndTime "9:09:26 PDT"]
[Termination "PedroCI won on time"]

1. e4 {[%clk 0:04:55.7]} 1... d5 {[%clk 0:04:58.8]} 2. exd5 {[%clk 0:04:53.9]}
2... Nf6 {[%clk 0:04:57.7]} 3. Nc3 {[%clk 0:04:51.8]} 3... Nxd5 {[%clk
0:04:56.4]} 4. Bc4 {[%clk 0:04:41.4]} 4... Nxc3 {[%clk 0:04:54.6]} 5. bxc3
{[%clk 0:04:39.7]} 5... Bf5 {[%clk 0:04:39.5]} 6. Nf3 {[%clk 0:04:25.5]} 6... e6
{[%clk 0:04:37.5]} 7. O-O {[%clk 0:04:13.6]} 7... Bd6 {[%clk 0:04:31.5]} 8. d3
{[%clk 0:04:11]} 8... Qf6 {[%clk 0:03:55.9]} 9. Nd4 {[%clk 0:03:42.3]} 9... Nc6
{[%clk 0:03:04.2]} 10. Nxf5 {[%clk 0:03:39.5]} 10... Qxf5 {[%clk 0:02:58.3]} 11.
d4 {[%clk 0:03:14.2]} 11... O-O-O {[%clk 0:02:33.9]} 12. Bd3 {[%clk 0:03:10.8]}
12... Qf6 {[%clk 0:02:30.7]} 13. Qg4 {[%clk 0:03:01.1]} 13... h5 {[%clk
0:02:18.2]} 14. Qe4 {[%clk 0:02:07.5]} 14... g5 {[%clk 0:01:29.6]} 15. Rb1
{[%clk 0:01:59.2]} 15... h4 {[%clk 0:01:11.2]} 16. h3 {[%clk 0:01:51.3]} 16...
Rdg8 {[%clk 0:01:08.3]} 17. Be2 {[%clk 0:01:36.9]} 17... Qg7 {[%clk 0:00:42]}
18. c4 {[%clk 0:01:25.9]} 18... Rh6 {[%clk 0:00:27]} 19. d5 {[%clk 0:01:18.5]}
19... f5 {[%clk 0:00:24.1]} 20. Qd3 {[%clk 0:00:59.6]} 20... Ne5 {[%clk
0:00:13.6]} 21. Qb3 {[%clk 0:00:51.1]} 21... c6 {[%clk 0:00:12]} 22. Bb2 {[%clk
0:00:48.5]} 22... exd5 {[%clk 0:00:10.2]} 23. Bxe5 {[%clk 0:00:47.1]} 23... Bxe5
{[%clk 0:00:08.3]} 24. cxd5 {[%clk 0:00:46.2]} 24... cxd5 {[%clk 0:00:07]} 25.
Qxd5 {[%clk 0:00:41.3]} 25... Rd6 {[%clk 0:00:05.4]} 26. Qc5+ {[%clk 0:00:38.7]}
26... Kb8 {[%clk 0:00:04.8]} 27. Bf3 {[%clk 0:00:34.4]} 27... Rc6 {[%clk
0:00:02.3]} 28. Bxc6 {[%clk 0:00:33.1]} 1-0

[Event "Live Chess"]
[Site "Chess.com"]
[Date "2024.06.01"]
[Round "-"]
[White "gunslinger222"]
[Black "13Alexey"]
[Result "1-0"]
[WhiteElo "2269"]
[BlackElo "708"]
[TimeControl "300"]
[EndTime "9:09:27 PDT"]
[Termination "gunslinger222 won by checkmate"]

1. d4 {[%clk 0:04:57.7]} 1... d5 {[%clk 0:04:58.5]} 2. Nf3 {[%clk 0:04:57]} 2...
Bf5 {[%clk 0:04:57.1]} 3. c3 {[%clk 0:04:54.5]} 3... e6 {[%clk 0:04:53.7]} 4.
Qb3 {[%clk 0:04:53.5]} 4... Qc8 {[%clk 0:04:51.5]} 5. Nh4 {[%clk 0:04:49.6]}
5... Bg6 {[%clk 0:04:49.7]} 6. Nxg6 {[%clk 0:04:48.3]} 6... hxg6 {[%clk
0:04:48.8]} 7. g3 {[%clk 0:04:47.8]} 7... Bd6 {[%clk 0:04:46.7]} 8. Bg2 {[%clk
0:04:47.3]} 8... Nd7 {[%clk 0:04:42.1]} 9. e4 {[%clk 0:04:45]} 9... dxe4 {[%clk
0:04:39.8]} 10. Bxe4 {[%clk 0:04:44.9]} 10... f5 {[%clk 0:04:37.5]} 11. Bxb7
{[%clk 0:04:42.6]} 11... Qb8 {[%clk 0:04:32]} 12. Qxe6+ {[%clk 0:04:32.9]} 12...
Ne7 {[%clk 0:04:27.6]} 13. Bc6 {[%clk 0:04:25.7]} 13... Qc8 {[%clk 0:04:18.1]}
14. Nd2 {[%clk 0:04:15.9]} 14... Rb8 {[%clk 0:04:16.1]} 15. Nc4 {[%clk
0:04:14.1]} 15... Rf8 {[%clk 0:04:02.8]} 16. Bg5 {[%clk 0:04:11.1]} 16... a5
{[%clk 0:03:42.2]} 17. Nxd6+ {[%clk 0:04:09.9]} 17... cxd6 {[%clk 0:03:40.8]}
18. Qxe7# {[%clk 0:04:09.1]} 1-0

[Event "Live Chess"]
[Site "Chess.com"]
[Date "2024.06.01"]
[Round "-"]
[White "Isambard_Thomas"]
[Black "Purple1szed"]
[Result "1-0"]
[WhiteElo "2093"]
[BlackElo "2094"]
[TimeControl "300"]
[EndTime "9:09:28 PDT"]
[Termination "Isambard_Thomas won on time"]

1. d4 {[%clk 0:04:32.9]} 1... d5 {[%clk 0:04:58.7]} 2. Nf3 {[%clk 0:04:32.1]}
2... Nf6 {[%clk 0:04:57.7]} 3. Bg5 {[%clk 0:04:31.6]} 3... c5 {[%clk 0:04:54.6]}
4. e3 {[%clk 0:04:30.5]} 4... Nc6 {[%clk 0:04:53.2]} 5. c3 {[%clk 0:04:29.3]}
5... cxd4 {[%clk 0:04:52.8]} 6. exd4 {[%clk 0:04:28]} 6... Bg4 {[%clk
0:04:52.5]} 7. Bd3 {[%clk 0:04:26.7]} 7... e6 {[%clk 0:04:48.7]} 8. Nbd2 {[%clk
0:04:25.7]} 8... h6 {[%clk 0:04:43.1]} 9. Bf4 {[%clk 0:04:24.2]} 9... Bd6 {[%clk
0:04:42]} 10. Bxd6 {[%clk 0:04:21.8]} 10... Qxd6 {[%clk 0:04:41.9]} 11. h3
{[%clk 0:04:21.1]} 11... Bh5 {[%clk 0:04:37.8]} 12. Qc2 {[%clk 0:04:20.2]} 12...
O-O {[%clk 0:04:33.9]} 13. O-O-O {[%clk 0:04:17.1]} 13... Rfc8 {[%clk
0:04:24.8]} 14. a3 {[%clk 0:04:14.2]} 14... Bxf3 {[%clk 0:04:16.8]} 15. Nxf3
{[%clk 0:04:11.1]} 15... a5 {[%clk 0:04:12.8]} 16. Kb1 {[%clk 0:04:02.3]} 16...
Rcb8 {[%clk 0:03:42.5]} 17. Rhe1 {[%clk 0:03:40.5]} 17... b5 {[%clk 0:03:33.8]}
18. Ne5 {[%clk 0:03:36.8]} 18... b4 {[%clk 0:03:21]} 19. cxb4 {[%clk 0:03:29.8]}
19... Nxd4 {[%clk 0:02:51.4]} 20. Qc5 {[%clk 0:03:27.7]} 20... Qxc5 {[%clk
0:02:33.3]} 21. bxc5 {[%clk 0:03:27.6]} 21... Nb3 {[%clk 0:02:20.7]} 22. c6
{[%clk 0:03:19.3]} 22... a4 {[%clk 0:02:11.1]} 23. f4 {[%clk 0:03:07.1]} 23...
Ra7 {[%clk 0:02:09.2]} 24. f5 {[%clk 0:02:58.5]} 24... Rc7 {[%clk 0:02:06.4]}
25. fxe6 {[%clk 0:02:48.9]} 25... fxe6 {[%clk 0:02:06.3]} 26. Ka2 {[%clk
0:02:45.3]} 26... Rb6 {[%clk 0:01:39.3]} 27. Bc2 {[%clk 0:02:15]} 27... Nc5
{[%clk 0:01:19.7]} 28. Rd4 {[%clk 0:02:13.9]} 28... Ra6 {[%clk 0:01:05.4]} 29.
Bg6 {[%clk 0:01:56.1]} 29... Nb3 {[%clk 0:00:58.1]} 30. Rb4 {[%clk 0:01:51.6]}
30... Ra8 {[%clk 0:00:46.4]} 31. Bc2 {[%clk 0:01:50.2]} 31... Na5 {[%clk
0:00:43.8]} 32. Rxa4 {[%clk 0:01:44.7]} 32... Raa7 {[%clk 0:00:32.4]} 33. Rc1
{[%clk 0:01:26]} 33... Ne8 {[%clk 0:00:28.5]} 34. Bg6 {[%clk 0:01:21.7]} 34...
Nd6 {[%clk 0:00:27]} 35. Rc5 {[%clk 0:01:15.2]} 35... Nac4 {[%clk 0:00:23.5]}
36. Rxa7 {[%clk 0:01:13]} 36... Rxa7 {[%clk 0:00:23.4]} 37. c7 {[%clk
0:01:11.2]} 37... Ra8 {[%clk 0:00:22]} 38. Nc6 {[%clk 0:01:06.9]} 38... Nc8
{[%clk 0:00:15.1]} 39. Rb5 {[%clk 0:01:00.5]} 39... N4d6 {[%clk 0:00:11.8]} 40.
Rb8 {[%clk 0:00:57.6]} 40... Ra6 {[%clk 0:00:11.5]} 41. Ne7+ {[%clk 0:00:55]}
41... Kf8 {[%clk 0:00:07.7]} 42. Nxc8 {[%clk 0:00:54.2]} 42... Nxc8 {[%clk
0:00:07.6]} 43. Rxc8+ {[%clk 0:00:53.4]} 43... Ke7 {[%clk 0:00:07.5]} 44. Re8+
{[%clk 0:00:51.8]} 44... Kf6 {[%clk 0:00:07.4]} 45. c8=Q {[%clk 0:00:51.2]}
45... Kxg6 {[%clk 0:00:06.8]} 46. Qc2+ {[%clk 0:00:50.3]} 46... Kf6 {[%clk
0:00:05.6]} 47. Rf8+ {[%clk 0:00:49.4]} 47... Ke7 {[%clk 0:00:04.8]} 48. Rc8
{[%clk 0:00:46.6]} 48... Rd6 {[%clk 0:00:04]} 49. Rc7+ {[%clk 0:00:45.9]} 49...
Rd7 {[%clk 0:00:03.5]} 50. Rxd7+ {[%clk 0:00:44.9]} 50... Kxd7 {[%clk
0:00:03.2]} 51. a4 {[%clk 0:00:44.5]} 51... Ke7 {[%clk 0:00:03.1]} 52. a5 {[%clk
0:00:44]} 52... Kf6 {[%clk 0:00:03]} 53. a6 {[%clk 0:00:43.7]} 53... g6 {[%clk
0:00:02.9]} 54. a7 {[%clk 0:00:43.2]} 54... h5 {[%clk 0:00:02.8]} 55. a8=Q
{[%clk 0:00:42.6]} 55... Ke5 {[%clk 0:00:02.7]} 56. Qh8+ {[%clk 0:00:41.6]}
56... Kd6 {[%clk 0:00:01.3]} 57. b4 {[%clk 0:00:39.3]} 57... d4 {[%clk
0:00:01.2]} 58. Qc5+ {[%clk 0:00:38.4]} 58... Kd7 {[%clk 0:00:00.2]} 59. Qg7+
{[%clk 0:00:37.5]} 1-0

[Event "Live Chess"]
[Site "Chess.com"]
[Date "2024.06.01"]
[Round "-"]
[White "Trendle"]
[Black "wadsy27"]
[Result "0-1"]
[WhiteElo "2619"]
[BlackElo "2599"]
[TimeControl "300"]
[EndTime "9:09:34 PDT"]
[Termination "wadsy27 won by resignation"]

1. e4 {[%clk 0:04:57.3]} 1... c5 {[%clk 0:04:57.4]} 2. Nc3 {[%clk 0:04:54.3]}
2... e6 {[%clk 0:04:55.7]} 3. f4 {[%clk 0:04:49.7]} 3... Nc6 {[%clk 0:04:53.1]}
4. Nf3 {[%clk 0:04:49]} 4... d5 {[%clk 0:04:50.7]} 5. Bb5 {[%clk 0:04:46]} 5...
Ne7 {[%clk 0:04:48.2]} 6. exd5 {[%clk 0:04:43.8]} 6... Nxd5 {[%clk 0:04:47]} 7.
O-O {[%clk 0:04:41.4]} 7... Be7 {[%clk 0:04:43.9]} 8. Ne5 {[%clk 0:04:32.4]}
8... Bd7 {[%clk 0:04:30.9]} 9. Bxc6 {[%clk 0:04:27.4]} 9... Bxc6 {[%clk
0:04:29.8]} 10. Nxc6 {[%clk 0:04:26.1]} 10... bxc6 {[%clk 0:04:29.7]} 11. Ne4
{[%clk 0:04:15.5]} 11... Qb6 {[%clk 0:04:10.5]} 12. Kh1 {[%clk 0:03:59.6]} 12...
Nf6 {[%clk 0:04:09.5]} 13. Qf3 {[%clk 0:03:52.9]} 13... Nxe4 {[%clk 0:04:04.9]}
14. Qxe4 {[%clk 0:03:51.7]} 14... O-O {[%clk 0:04:04.1]} 15. d3 {[%clk
0:03:40.9]} 15... Bf6 {[%clk 0:04:03.3]} 16. Rb1 {[%clk 0:03:38.4]} 16... Rfd8
{[%clk 0:04:00.4]} 17. f5 {[%clk 0:03:32.6]} 17... Rd4 {[%clk 0:03:55.5]} 18.
Qf3 {[%clk 0:03:30.8]} 18... exf5 {[%clk 0:03:54]} 19. Qxf5 {[%clk 0:03:29.5]}
19... Rd5 {[%clk 0:03:47.3]} 20. Qg4 {[%clk 0:03:25.2]} 20... Qd8 {[%clk
0:03:29.2]} 21. b3 {[%clk 0:03:19.7]} 21... h5 {[%clk 0:03:13.1]} 22. Qf3 {[%clk
0:03:16]} 22... Qd7 {[%clk 0:03:07.4]} 23. Bf4 {[%clk 0:03:07.5]} 23... Bc3
{[%clk 0:02:59.4]} 24. Bg3 {[%clk 0:03:02.1]} 24... Re8 {[%clk 0:02:57.1]} 25.
h3 {[%clk 0:02:57.8]} 25... g6 {[%clk 0:02:53.2]} 26. Bh4 {[%clk 0:02:36]} 26...
Rde5 {[%clk 0:02:42.4]} 27. Qf4 {[%clk 0:02:24.3]} 27... Re2 {[%clk 0:02:38.4]}
28. Rf2 {[%clk 0:02:13.9]} 28... Qd5 {[%clk 0:02:31.7]} 29. Rbf1 {[%clk
0:02:09.8]} 29... Rxf2 {[%clk 0:02:28.9]} 30. Qxf2 {[%clk 0:02:07.2]} 30... Bd4
{[%clk 0:02:23]} 31. Qd2 {[%clk 0:02:03.5]} 31... Re3 {[%clk 0:02:21.3]} 32. Kh2
{[%clk 0:01:47.3]} 32... Qe5+ {[%clk 0:02:12.5]} 33. Kh1 {[%clk 0:01:45.9]}
33... Re2 {[%clk 0:02:06.4]} 34. Qa5 {[%clk 0:01:35.4]} 34... Qd5 {[%clk
0:02:05]} 35. Rf3 {[%clk 0:01:17.2]} 35... g5 {[%clk 0:01:58.3]} 36. c4 {[%clk
0:01:08.2]} 36... Qd7 {[%clk 0:01:38.8]} 37. Bxg5 {[%clk 0:01:04.5]} 37... Re1+
{[%clk 0:01:37.4]} 38. Kh2 {[%clk 0:01:02.7]} 38... Bg1+ {[%clk 0:01:03.1]} 39.
Kg3 {[%clk 0:01:00.1]} 39... Qd6+ {[%clk 0:00:57.1]} 40. Bf4 {[%clk 0:00:53.8]}
40... Qg6+ {[%clk 0:00:56.2]} 41. Kh4 {[%clk 0:00:52.6]} 41... Bd4 {[%clk
0:00:44.3]} 42. g4 {[%clk 0:00:29.4]} 42... hxg4 {[%clk 0:00:32.7]} 43. Qxe1
{[%clk 0:00:27.4]} 43... gxf3 {[%clk 0:00:30.3]} 44. Qe8+ {[%clk 0:00:19.4]}
44... Kh7 {[%clk 0:00:29.8]} 45. Be5 {[%clk 0:00:16.5]} 45... Bf2+ {[%clk
0:00:28.2]} 0-1

[Event "Live Chess"]
[Site "Chess.com"]
[Date "2024.06.01"]
[Round "-"]
[White "Pizzaman313"]
[Black "Crowded_House"]
[Result "1/2-1/2"]
[WhiteElo "1193"]
[BlackElo "1758"]
[TimeControl "300"]
[EndTime "9:09:35 PDT"]
[Termination "Game drawn by repetition"]

1. e4 {[%clk 0:04:57.5]} 1... e6 {[%clk 0:04:59]} 2. d4 {[%clk 0:04:55.8]} 2...
d5 {[%clk 0:04:58.1]} 3. e5 {[%clk 0:04:55.2]} 3... c5 {[%clk 0:04:56.6]} 4. c3
{[%clk 0:04:53.6]} 4... Nc6 {[%clk 0:04:55.3]} 5. Nf3 {[%clk 0:04:53.1]} 5...
Qb6 {[%clk 0:04:51.8]} 6. a3 {[%clk 0:04:52]} 6... Bd7 {[%clk 0:04:50.4]} 7. b4
{[%clk 0:04:50.7]} 7... cxd4 {[%clk 0:04:47]} 8. cxd4 {[%clk 0:04:49.3]} 8...
Nge7 {[%clk 0:04:42.9]} 9. Bb2 {[%clk 0:04:48.5]} 9... Ng6 {[%clk 0:04:41.4]}
10. Be2 {[%clk 0:04:41.6]} 10... Be7 {[%clk 0:04:39.7]} 11. O-O {[%clk
0:04:38.9]} 11... O-O {[%clk 0:04:39.2]} 12. Bd3 {[%clk 0:04:06.7]} 12... Rfc8
{[%clk 0:04:29.9]} 13. Bxg6 {[%clk 0:04:02.6]} 13... hxg6 {[%clk 0:04:27.1]} 14.
Nbd2 {[%clk 0:03:58.1]} 14... a6 {[%clk 0:04:23.8]} 15. Rc1 {[%clk 0:03:26.3]}
15... Na7 {[%clk 0:04:21.9]} 16. Nb3 {[%clk 0:03:13.9]} 16... Qd8 {[%clk
0:04:00]} 17. Nc5 {[%clk 0:03:02.9]} 17... Bxc5 {[%clk 0:03:51.7]} 18. dxc5
{[%clk 0:02:57.9]} 18... b6 {[%clk 0:03:48.2]} 19. Bd4 {[%clk 0:02:49.1]} 19...
bxc5 {[%clk 0:03:42.7]} 20. Bxc5 {[%clk 0:02:49]} 20... Nb5 {[%clk 0:03:29.1]}
21. Qd3 {[%clk 0:02:21.3]} 21... a5 {[%clk 0:03:12.4]} 22. Nd4 {[%clk
0:01:53.6]} 22... Nxd4 {[%clk 0:03:04.8]} 23. Qxd4 {[%clk 0:01:50.6]} 23... axb4
{[%clk 0:03:03]} 24. axb4 {[%clk 0:01:42.2]} 24... Ra4 {[%clk 0:02:55.7]} 25.
Bb6 {[%clk 0:01:27.5]} 25... Qe8 {[%clk 0:02:54.4]} 26. Rxc8 {[%clk 0:01:25.1]}
26... Qxc8 {[%clk 0:02:53.4]} 27. Bc5 {[%clk 0:01:21.4]} 27... Qa8 {[%clk
0:02:44.9]} 28. h3 {[%clk 0:01:03.3]} 28... Qb7 {[%clk 0:02:38.6]} 29. Rc1
{[%clk 0:01:00]} 29... Qc8 {[%clk 0:02:27.1]} 30. Qf4 {[%clk 0:00:53.2]} 30...
Qb7 {[%clk 0:02:17.6]} 31. Bd6 {[%clk 0:00:50.4]} 31... Bc6 {[%clk 0:02:14.4]}
32. Qh4 {[%clk 0:00:43.8]} 32... Qb5 {[%clk 0:01:56.6]} 33. Qd8+ {[%clk
0:00:38.2]} 33... Kh7 {[%clk 0:01:54.6]} 34. Qh4+ {[%clk 0:00:12.4]} 34... Kg8
{[%clk 0:01:52.5]} 35. Qd8+ {[%clk 0:00:11.8]} 35... Kh7 {[%clk 0:01:52.1]} 36.
Qh4+ {[%clk 0:00:10]} 36... Kg8 {[%clk 0:01:51.7]} 1/2-1/2

[Event "Live Chess"]
[Site "Chess.com"]
[Date "2024.06.01"]
[Round "-"]
[White "Leovip"]
[Black "MaximKhimchenko"]
[Result "1/2-1/2"]
[WhiteElo "1729"]
[BlackElo "1743"]
[TimeControl "300"]
[EndTime "9:09:40 PDT"]
[Termination "Game drawn by stalemate"]

1. e4 {[%clk 0:04:54.5]} 1... c5 {[%clk 0:04:58.8]} 2. Nf3 {[%clk 0:04:42.6]}
2... d6 {[%clk 0:04:57.8]} 3. Bc4 {[%clk 0:04:40.4]} 3... Nf6 {[%clk 0:04:56.6]}
4. Nc3 {[%clk 0:04:39.1]} 4... e6 {[%clk 0:04:56.1]} 5. d4 {[%clk 0:04:37.7]}
5... cxd4 {[%clk 0:04:55.1]} 6. Nxd4 {[%clk 0:04:36.1]} 6... Nc6 {[%clk
0:04:54.7]} 7. O-O {[%clk 0:04:30.2]} 7... Bd7 {[%clk 0:04:53.6]} 8. Kh1 {[%clk
0:04:24.9]} 8... Rc8 {[%clk 0:04:52.3]} 9. Nxc6 {[%clk 0:04:16.2]} 9... Bxc6
{[%clk 0:04:48.5]} 10. Bd3 {[%clk 0:04:14.6]} 10... Be7 {[%clk 0:04:46.2]} 11.
f3 {[%clk 0:04:11.8]} 11... h5 {[%clk 0:04:43.7]} 12. Bf4 {[%clk 0:04:02.7]}
12... h4 {[%clk 0:04:40.8]} 13. h3 {[%clk 0:04:00.5]} 13... Nh5 {[%clk
0:04:38.5]} 14. Bh2 {[%clk 0:03:54.6]} 14... Ng3+ {[%clk 0:04:29.6]} 15. Bxg3
{[%clk 0:03:52.8]} 15... hxg3 {[%clk 0:04:29.5]} 16. Ne2 {[%clk 0:03:51.5]}
16... Bh4 {[%clk 0:04:22.9]} 17. Qe1 {[%clk 0:03:50]} 17... Qg5 {[%clk
0:04:17.5]} 18. f4 {[%clk 0:03:48.1]} 18... Qg6 {[%clk 0:04:03.6]} 19. e5 {[%clk
0:03:45.8]} 19... Qh6 {[%clk 0:03:58.1]} 20. Nxg3 {[%clk 0:03:39.9]} 20... Be7
{[%clk 0:03:54]} 21. Kg1 {[%clk 0:03:22.2]} 21... Bh4 {[%clk 0:03:33.8]} 22. Qe3
{[%clk 0:03:11.3]} 22... d5 {[%clk 0:03:29]} 23. Rae1 {[%clk 0:03:02.6]} 23...
d4 {[%clk 0:03:26.6]} 24. Qf2 {[%clk 0:02:49.4]} 24... Bd8 {[%clk 0:03:17.4]}
25. f5 {[%clk 0:02:42.1]} 25... Bg5 {[%clk 0:03:14]} 26. fxe6 {[%clk 0:02:33.3]}
26... Be3 {[%clk 0:02:59.6]} 27. Rxe3 {[%clk 0:02:30.1]} 27... Qxe3 {[%clk
0:02:58.1]} 28. Qxe3 {[%clk 0:02:26.1]} 28... dxe3 {[%clk 0:02:58]} 29. exf7+
{[%clk 0:02:24.3]} 29... Kf8 {[%clk 0:02:53.1]} 30. Nf5 {[%clk 0:02:11.4]} 30...
g6 {[%clk 0:02:40.8]} 31. Nd6 {[%clk 0:02:07]} 31... Rd8 {[%clk 0:02:35.5]} 32.
Bxg6 {[%clk 0:02:05]} 32... Kg7 {[%clk 0:02:31.7]} 33. Bd3 {[%clk 0:01:53.2]}
33... Rh5 {[%clk 0:02:26.8]} 34. Nf5+ {[%clk 0:01:42.4]} 34... Kf8 {[%clk
0:02:22.8]} 35. e6 {[%clk 0:01:40.1]} 35... Rxf5 {[%clk 0:02:13.4]} 36. Bxf5
{[%clk 0:01:35.8]} 36... Bb5 {[%clk 0:02:10.9]} 37. Re1 {[%clk 0:01:34.1]} 37...
e2 {[%clk 0:02:08.7]} 38. Bg4 {[%clk 0:01:32.7]} 38... Rd2 {[%clk 0:02:05.7]}
39. Bf5 {[%clk 0:01:26.3]} 39... Ke7 {[%clk 0:02:00.7]} 40. b3 {[%clk
0:01:23.7]} 40... Rd8 {[%clk 0:01:55.5]} 41. c4 {[%clk 0:01:21.3]} 41... Bc6
{[%clk 0:01:53.9]} 42. Rxe2 {[%clk 0:01:20.1]} 42... Kf6 {[%clk 0:01:53.2]} 43.
e7 {[%clk 0:01:10.2]} 43... Rd1+ {[%clk 0:01:51.4]} 44. Kh2 {[%clk 0:01:07.7]}
44... Kxf7 {[%clk 0:01:47.6]} 45. Be6+ {[%clk 0:01:01.8]} 45... Kg6 {[%clk
0:01:47.5]} 46. Bd5 {[%clk 0:00:59.3]} 46... Be8 {[%clk 0:01:42]} 47. Re6+
{[%clk 0:00:57.6]} 47... Kf5 {[%clk 0:01:39.5]} 48. Rd6 {[%clk 0:00:53.6]} 48...
Ke5 {[%clk 0:01:24.9]} 49. Rd8 {[%clk 0:00:51]} 49... Bg6 {[%clk 0:01:23.1]} 50.
e8=N {[%clk 0:00:45.2]} 50... Bxe8 {[%clk 0:01:22.2]} 51. Rxe8+ {[%clk
0:00:43.4]} 51... Kd4 {[%clk 0:01:21]} 52. Bxb7 {[%clk 0:00:41.8]} 52... Kc3
{[%clk 0:01:19.9]} 53. Ra8 {[%clk 0:00:40.3]} 53... Kd2 {[%clk 0:01:16.7]} 54.
Rxa7 {[%clk 0:00:38.7]} 54... Ke1 {[%clk 0:01:15.9]} 55. a4 {[%clk 0:00:36.2]}
55... Kd2 {[%clk 0:01:15.1]} 56. Bf3 {[%clk 0:00:34.5]} 56... Rb1 {[%clk
0:01:11.1]} 57. Rb7 {[%clk 0:00:31.9]} 57... Kc3 {[%clk 0:01:09.1]} 58. c5
{[%clk 0:00:29.8]} 58... Kb2 {[%clk 0:00:55.6]} 59. c6 {[%clk 0:00:28.6]} 59...
Rc1 {[%clk 0:00:55.5]} 60. c7 {[%clk 0:00:27.1]} 60... Ka3 {[%clk 0:00:51]} 61.
Bg4 {[%clk 0:00:26]} 61... Re1 {[%clk 0:00:44.4]} 62. c8=Q {[%clk 0:00:24.1]}
62... Kb2 {[%clk 0:00:43.7]} 63. Qh8+ {[%clk 0:00:21.6]} 63... Ka2 {[%clk
0:00:40.6]} 64. Qc3 {[%clk 0:00:17.8]} 64... Rb1 {[%clk 0:00:36.7]} 65. b4
{[%clk 0:00:16.4]} 65... Rb2 {[%clk 0:00:31.8]} 66. Be6+ {[%clk 0:00:14.7]}
66... Kb1 {[%clk 0:00:28.5]} 67. Rd7 {[%clk 0:00:13.9]} 67... Rxg2+ {[%clk
0:00:19.5]} 68. Kxg2 {[%clk 0:00:11.2]} 1/2-1/2